bitfinex/quotes_ETHUSD_20250126
["timestamp","ask_amount","ask_price","bid_price","bid_amount"]
[1737894791694,0.10302643,3303.5,3303.4,3.02717]
[1737894791984,3.2496,3303.9,3303.4,3.02717]
[1737894792158,0.10302643,3303.5,3303.4,3.02717]
[1737894792347,3.2496,3303.9,3303.4,3.02717]
[1737894792547,0.10302643,3303.5,3303.4,3.02717]
[1737894792860,3.2496,3303.9,3303.4,3.02717]
[1737894793346,0.10302643,3303.8,3303.4,3.02717]
[1737894799483,0.795,3303.5,3303.0,3.02753]
[1737894800055,0.10302643,3303.4,3303.0,3.02753]
[1737894802362,0.10302643,3303.4,3303.1,3.02745]
[1737894803970,0.10302643,3303.4,3303.0,3.02753]
[1737894804177,0.10302643,3303.4,3303.2,3.02735]
[1737894813612,0.10302643,3303.4,3303.3,0.10778738]
[1737894814670,0.10302643,3303.4,3303.3,3.13505738]
[1737894814877,0.10302643,3303.4,3303.3,3.12754019]
[1737894815319,6.19378282,3303.7,3303.3,3.12754019]
[1737894815620,7.4407951,3303.7,3303.3,3.12754019]
[1737894815825,0.10259116,3303.6,3303.3,3.02727]
[1737894816709,0.10259116,3303.6,3303.4,3.02711]
[1737894816878,0.10259116,3303.6,3303.5,3.02709]
[1737894817323,0.10259116,3303.6,3303.5,3.82099]
[1737894818130,0.10259116,3303.6,3303.5,4.5058]
[1737894819797,0.2496,3303.9,3303.5,4.5058]
[1737894820130,0.10271696,3303.8,3303.7,3.02684]
[1737894821124,0.10271696,3303.8,3303.7,3.84714]
[1737894822090,0.2496,3303.9,3303.8,3.84711]
[1737894822385,0.2496,3303.9,3303.8,3.87737362]
[1737894823918,0.2496,3303.9,3303.8,3.84711]
[1737894824116,0.2496,3303.9,3303.8,4.534505]
[1737894827752,0.2496,3303.9,3303.8,4.64200241]
[1737894829454,0.2496,3303.9,3303.8,3.13430741]
[1737894829827,0.35264707,3303.9,3303.8,3.13430741]
[1737894830022,0.2496,3303.9,3303.8,3.13430741]
[1737894830422,0.2496,3303.9,3303.8,3.95460741]
[1737894830640,0.2496,3303.9,3303.8,3.98487288]
[1737894830951,0.2496,3303.9,3303.8,4.68604417]
[1737894831921,0.2496,3303.9,3303.8,4.6557787]
[1737894832123,0.2496,3303.9,3303.8,3.95460741]
[1737894832755,0.35283175,3303.9,3303.8,3.95460741]
[1737894834257,0.2496,3303.9,3303.8,3.95460741]
[1737894834853,0.35283175,3303.9,3303.8,3.95460741]
[1737894835425,0.2496,3303.9,3303.8,3.95460741]
[1737894836228,0.2496,3303.9,3303.8,4.65275215]
[1737894837414,0.2496,3303.9,3303.8,4.68301687]
[1737894837615,0.2496,3303.9,3303.8,4.65275215]
[1737894837806,0.2496,3303.9,3303.8,4.68301682]
[1737894838012,0.2496,3303.9,3303.8,4.65275215]
[1737894840352,0.2496,3303.9,3303.8,3.95460741]
[1737894840959,0.2496,3303.9,3303.8,3.13430741]
[1737894841314,0.35286318,3303.9,3303.8,3.13430741]
[1737894842241,0.2496,3303.9,3303.8,3.13430741]
[1737894842849,0.35286713,3303.9,3303.8,3.13430741]
[1737894843950,0.35286713,3303.9,3303.8,0.10749741]
[1737894843951,1.15456713,3303.9,3303.8,0.10749741]
[1737894844144,7.59940384,3303.9,3303.8,0.10749741]
[1737894844620,7.59940384,3303.9,3303.3,3.02721]
[1737894844819,6.79770384,3303.9,3303.3,3.02721]
[1737894845039,0.8017,3303.8,3303.3,3.02721]
[1737894845432,0.10316495,3303.7,3303.3,3.02721]
[1737894845631,0.8017,3303.8,3303.3,3.02721]
[1737894845835,0.85277862,3303.7,3303.3,3.02721]
[1737894846855,0.85277862,3303.7,3303.1,3.02743]
[1737894846856,0.8017,3303.6,3303.1,3.02743]
[1737894847157,3.0271,3303.5,3302.7,3.02775]
[1737894847327,0.8017,3303.3,3302.8,3.0277]
[1737894847861,0.10297239,3303.2,3302.9,3.02763]
[1737894848356,0.8017,3303.3,3303.0,0.10757446]
[1737894848555,0.10297239,3303.1,3303.0,0.10757446]
[1737894849067,0.8017,3303.3,3303.0,0.10757446]
[1737894849250,0.10297239,3303.1,3302.9,3.02763]
[1737894849557,0.8017,3303.3,3302.9,3.02763]
[1737894849726,0.10297239,3303.0,3302.9,3.02763]
[1737894850355,0.8017,3303.3,3302.9,3.02763]
[1737894850560,0.10297239,3303.0,3302.9,3.02763]
[1737894850757,4.2119,3303.3,3302.7,3.02775]
[1737894851361,0.10297239,3303.2,3302.7,3.02775]
[1737894852748,0.10297239,3303.2,3302.8,3.0277]
[1737894853152,4.2119,3303.3,3302.8,3.0277]
[1737894853360,0.10288199,3303.1,3302.8,3.0277]
[1737894853667,0.10288199,3303.0,3302.8,3.0277]
[1737894854026,0.42119,3303.2,3302.8,3.0277]
[1737894854227,0.10288199,3303.1,3302.8,3.0277]
[1737894854728,0.10288199,3303.1,3302.5,3.79527]
[1737894854940,0.10288199,3303.1,3302.6,3.02784]
[1737894857472,0.10288199,3303.1,3302.5,3.79527]
[1737894857642,3.13036199,3303.1,3302.6,3.02791]
[1737894857839,0.7967,3303.0,3302.5,3.02797]
[1737894858042,0.10253612,3302.9,3302.3,3.02818]
[1737894858241,3.13021612,3302.9,3302.3,3.02818]
[1737894858475,8.51269894,3302.9,3302.3,3.02818]
[1737894859832,8.51269894,3302.9,3302.0,0.7829]
[1737894859833,3.02789,3302.7,3302.0,0.7829]
[1737894860037,0.7967,3302.5,3301.9,3.02851]
[1737894860235,0.10217049,3302.4,3301.9,3.02851]
[1737894861563,0.10217049,3302.4,3301.9,3.02849]
[1737894862172,3.13029049,3302.4,3301.9,3.02849]
[1737894862376,0.10217049,3302.4,3301.9,3.02849]
[1737894862939,3.13033049,3302.4,3301.7,3.02872]
[1737894863143,3.13033049,3302.4,3301.8,3.02863]
[1737894863459,3.02825,3302.3,3301.6,0.787]
[1737894863660,0.7612,3302.2,3301.7,3.02871]
[1737894863964,3.78954,3302.2,3301.5,3.1972372]
[1737894864155,0.10199352,3302.1,3301.6,3.02881]
[1737894864978,0.10199352,3302.1,3301.5,3.1972372]
[1737894865184,0.10199352,3302.1,3301.7,3.02868]
[1737894867193,0.10199352,3302.1,3302.0,3.02846]
[1737894867685,0.10191092,3302.1,3302.0,3.02846]
[1737894868160,0.7612,3302.4,3302.0,3.02846]
[1737894868346,0.10191092,3302.1,3302.0,3.02846]
[1737894868857,0.7612,3302.4,3302.0,3.02846]
[1737894869058,0.10191092,3302.1,3302.0,3.02846]
[1737894869258,0.61436828,3302.3,3302.0,3.02846]
[1737894869466,0.10191092,3302.1,3302.0,3.02846]
[1737894869779,0.10191092,3302.1,3301.0,1.01329473]
[1737894869780,0.7612,3302.1,3301.6,3.0288]
[1737894869986,0.86311092,3302.1,3301.6,3.0288]
[1737894870545,1.31368784,3302.1,3301.6,3.0288]
[1737894870745,1.31368784,3302.1,3301.3,3.02902]
[1737894870939,4.34208784,3302.1,3301.5,3.1972372]
[1737894871563,1.31368784,3302.1,3301.5,3.1972372]
[1737894873379,1.31368784,3302.1,3301.5,6.2260672]
[1737894874372,0.43419778,3302.0,3301.6,3.02883]
[1737894874574,0.10193452,3301.9,3301.6,3.02883]
[1737894875290,3.79003,3301.6,3301.5,0.1683472]
[1737894875679,3.89169706,3301.6,3301.5,0.1683472]
[1737894877311,12.27417988,3301.6,3301.5,0.1683472]
[1737894877495,14.10734187,3301.6,3301.5,0.1683472]
[1737894889062,14.87594187,3301.6,3301.5,0.1683472]
[1737894895883,3.02929,3301.1,3301.0,0.41666667]
[1737894896164,6.80409,3301.1,3301.0,0.41666667]
[1737894896465,8.06942507,3301.1,3301.0,0.41666667]
[1737894897365,6.90439707,3301.1,3301.0,0.41666667]
[1737894899173,6.12959707,3301.1,3301.0,0.41666667]
[1737894899973,11.51207989,3301.1,3301.0,0.41666667]
[1737894902479,8.48278989,3301.1,3301.0,0.41666667]
[1737894903190,11.51207989,3301.1,3301.0,0.41666667]
[1737894903747,11.51207989,3301.1,3300.9,0.41666667]
[1737894905091,8.48278989,3301.1,3300.9,0.41666667]
[1737894905578,11.51209989,3301.1,3300.9,0.41666667]
[1737894907760,3.02938,3301.0,3300.9,0.41666667]
[1737894908094,3.12630983,3301.0,3300.9,0.41666667]
[1737894909096,0.09692983,3301.0,3300.9,0.41666667]
[1737894910807,0.09692983,3301.0,3300.9,1.20336667]
[1737894911183,3.0,3301.5,3300.9,4.23283667]
[1737894911365,0.09683926,3301.0,3300.9,4.23283667]
[1737894911569,3.02893,3301.5,3300.9,4.23283667]
[1737894911782,0.09691803,3301.0,3300.9,4.23283667]
[1737894911990,3.0,3301.4,3300.9,1.20336667]
[1737894912192,0.09692591,3301.0,3300.9,1.20336667]
[1737894912410,3.0,3301.4,3300.9,1.20336667]
[1737894912575,0.09692591,3301.0,3300.9,1.31100382]
[1737894912770,3.0,3301.4,3300.9,1.31100382]
[1737894912975,0.09692591,3301.0,3300.9,1.31100382]
[1737894913196,3.02911,3301.3,3300.9,1.31100382]
[1737894913398,3.12630591,3301.0,3300.9,0.52430382]
[1737894913581,3.02938,3301.0,3300.9,0.52430382]
[1737894913908,3.12637286,3301.0,3300.9,0.41666667]
[1737894917816,0.09699286,3301.0,3300.9,1.20336667]
[1737894918111,3.02922,3301.2,3300.9,1.20336667]
[1737894918303,0.09705192,3301.0,3300.9,1.20336667]
[1737894918504,3.02929,3301.1,3300.9,1.20336667]
[1737894918817,0.09705192,3301.0,3300.9,1.20336667]
[1737894919174,3.0,3301.5,3300.9,1.20336667]
[1737894919412,0.09697316,3301.0,3300.9,1.20336667]
[1737894919592,3.02911,3301.3,3300.9,1.20336667]
[1737894919792,0.09697316,3301.0,3300.9,1.20336667]
[1737894919988,3.0,3301.5,3300.9,1.20336667]
[1737894920191,0.09697316,3301.0,3300.9,1.20336667]
[1737894920392,3.02903,3301.4,3300.9,1.20336667]
[1737894920587,0.09697316,3301.0,3300.9,1.31101882]
[1737894920806,3.02903,3301.4,3300.9,1.31101882]
[1737894921008,0.09705586,3301.0,3300.9,1.31101882]
[1737894921209,3.02903,3301.4,3300.9,1.31101882]
[1737894921416,0.09705586,3301.0,3300.9,1.31101882]
[1737894921612,3.02903,3301.4,3300.9,1.31101882]
[1737894921780,0.09705586,3301.0,3300.9,1.31101882]
[1737894921982,3.02903,3301.4,3300.9,1.31101882]
[1737894922290,3.0,3301.9,3301.1,3.02924]
[1737894922614,0.09392099,3301.8,3301.4,0.8169]
[1737894922984,0.09392099,3301.8,3301.4,0.3169]
[1737894923502,3.12258099,3301.8,3301.4,0.3169]
[1737894923703,0.09392099,3301.8,3301.4,0.3169]
[1737894923906,3.02885,3301.6,3301.4,0.3169]
[1737894924286,0.09418086,3301.5,3301.4,0.3169]
[1737894925111,6.02859,3301.9,3301.4,0.3169]
[1737894925316,0.09418086,3301.5,3301.4,3.3459]
[1737894925613,3.0,3301.9,3301.4,3.3459]
[1737894925791,0.09422023,3301.5,3301.4,3.3459]
[1737894925995,3.0,3301.9,3301.4,3.3459]
[1737894926196,0.09422023,3301.5,3301.4,0.3169]
[1737894926393,6.02862,3301.9,3301.4,0.3169]
[1737894926721,3.0,3301.9,3301.4,3.34591]
[1737894926902,0.0943147,3301.8,3301.4,3.34591]
[1737894927487,0.08686855,3301.8,3301.4,3.34591]
[1737894928427,0.08686855,3301.8,3301.4,0.3169]
[1737894930724,0.08686855,3301.8,3301.4,3.34589]
[1737894930886,0.08686855,3301.8,3301.4,0.3169]
[1737894931487,0.08686855,3301.8,3301.4,3.34591]
[1737894931830,0.08686855,3301.8,3301.4,0.3169]
[1737894932194,0.14088687,3301.8,3301.4,0.3169]
[1737894932927,3.16953687,3301.8,3301.4,0.3169]
[1737894933221,7.11807956,3301.8,3301.4,0.3169]
[1737894934322,3.02875,3301.7,3301.4,0.3169]
[1737894934542,4.08933956,3301.8,3301.4,0.3169]
[1737894934723,0.14103644,3301.6,3301.4,0.3169]
[1737894935018,3.94845269,3301.8,3301.4,0.3169]
[1737894935623,0.14103644,3301.7,3301.4,0.3169]
[1737894935833,3.0,3301.9,3301.4,0.3169]
[1737894936041,6.631447,3301.9,3301.4,0.3169]
[1737894936341,0.14103644,3301.8,3301.4,0.3169]
[1737894937244,0.14103644,3301.8,3301.6,3.02882]
[1737894937544,6.02838,3302.1,3301.7,0.8169]
[1737894937836,3.02847,3302.0,3301.7,0.8169]
[1737894938131,3.02867,3301.8,3301.5,0.8169]
[1737894940006,3.934153,3302.0,3301.5,0.8169]
[1737894940510,0.905683,3302.0,3301.5,3.84575]
[1737894940818,6.02837,3302.1,3301.5,3.84575]
[1737894943211,3.02853,3302.0,3301.5,0.8169]
[1737894943539,3.02856,3301.9,3301.5,0.8169]
[1737894943707,3.02867,3301.8,3301.5,0.8169]
[1737894945637,3.02842,3302.1,3301.5,0.8169]
[1737894945842,3.331372,3302.0,3301.5,0.8169]
[1737894946252,0.302842,3302.0,3301.5,0.8169]
[1737894946418,3.0284,3302.1,3301.5,3.84576]
[1737894946624,3.0,3302.0,3301.5,3.84576]
[1737894947146,3.0,3302.0,3301.6,0.28325983]
[1737894947334,3.0,3302.0,3301.6,0.39083027]
[1737894948252,3.0,3302.0,3301.6,3.41963027]
[1737894948614,3.0,3302.0,3301.7,0.10757044]
[1737894948814,3.0,3302.0,3301.7,0.39083027]
[1737894949050,3.0,3302.1,3301.7,0.39083027]
[1737894949354,3.0,3302.1,3301.7,3.41954027]
[1737894949568,3.0,3302.1,3301.7,3.31196983]
[1737894950642,5.38248282,3302.2,3301.9,0.7994]
[1737894950857,6.28439152,3302.2,3301.9,0.7994]
[1737894951732,9.31268152,3302.2,3301.9,0.7994]
[1737894951938,3.16073959,3302.1,3301.6,0.7994]
[1737894952349,3.02848,3302.0,3301.6,0.7994]
[1737894952855,0.13234959,3301.9,3301.6,0.7994]
[1737894953062,3.02838,3302.1,3301.7,0.10768196]
[1737894953365,0.13234566,3302.0,3301.7,0.10768196]
[1737894953751,0.13234566,3302.0,3301.8,0.10768196]
[1737894954480,3.16081566,3302.0,3301.8,0.10768196]
[1737894954878,3.16081566,3302.0,3301.6,0.7994]
[1737894955370,0.13234566,3302.0,3301.6,0.7994]
[1737894955933,0.13234566,3302.0,3301.7,0.10769858]
[1737894957173,0.13234566,3302.0,3301.8,0.10769858]
[1737894957351,1.50195217,3302.0,3301.8,0.10769858]
[1737894957753,4.53042217,3302.0,3301.8,0.10769858]
[1737894958340,4.53042217,3302.0,3301.6,0.7994]
[1737894961002,1.50195217,3302.0,3301.6,0.7994]
[1737894961293,0.13234566,3302.0,3301.6,0.7994]
[1737894961497,3.02838,3302.1,3301.6,0.7994]
[1737894961691,0.13234566,3302.0,3301.6,3.82823]
[1737894961874,9.16497282,3302.2,3301.6,0.7994]
[1737894962076,0.13234566,3302.1,3301.6,0.7994]
[1737894962396,1.12292792,3302.1,3301.6,3.82818]
[1737894963456,1.12292792,3302.1,3301.7,3.02874]
[1737894964240,0.13234566,3302.1,3301.8,3.02858]
[1737894965208,0.13234566,3302.1,3301.6,0.7994]
[1737894965493,0.13234566,3302.1,3301.6,3.82821]
[1737894966351,3.16077566,3302.1,3301.6,0.7994]
[1737894967357,0.13234566,3302.1,3301.6,3.82819]
[1737894967551,1.04750892,3302.1,3301.6,0.7994]
[1737894968767,1.04750892,3302.1,3301.6,3.82822]
[1737894971439,4.07590892,3302.1,3301.6,3.82822]
[1737894972131,1.04750892,3302.1,3301.6,3.82822]
[1737894975422,1.04750892,3302.1,3301.7,0.1077534]
[1737894976269,1.04750892,3302.1,3301.8,0.1077534]
[1737894976470,0.94583017,3302.0,3301.8,0.1077534]
[1737894976819,0.13232203,3301.9,3301.8,0.1077534]
[1737894977447,8.41079282,3302.2,3301.8,0.1077534]
[1737894977651,0.13233779,3301.9,3301.8,0.1077534]
[1737894977822,5.38248282,3302.2,3301.8,3.1363134]
[1737894978020,0.13233779,3301.9,3301.8,3.1363134]
[1737894978276,5.38248282,3302.2,3301.9,0.1077534]
[1737894978479,0.9019217,3302.1,3301.9,0.1077534]
[1737894980318,3.63670414,3302.3,3301.9,0.1077534]
[1737894980778,3.63670414,3302.3,3301.8,0.8325]
[1737894981275,4.41470414,3302.3,3301.8,0.8325]
[1737894981484,3.63670414,3302.3,3301.8,0.8325]
[1737894981979,0.13232599,3302.2,3301.8,0.8325]
[1737894982324,3.0282,3302.3,3301.8,3.86113]
[1737894982523,0.13236532,3302.2,3301.8,3.86113]
[1737894982768,4.24987128,3302.3,3301.8,3.86113]
[1737894982975,0.13236532,3302.1,3301.8,3.86113]
[1737894983167,4.24987128,3302.3,3301.8,3.86113]
[1737894983473,0.13236532,3302.0,3301.8,3.86113]
[1737894983657,3.0282,3302.3,3301.8,3.86113]
[1737894983977,0.30282,3302.2,3301.8,3.86113]
[1737894984160,0.43517352,3302.2,3301.8,3.86113]
[1737894985140,0.43517352,3302.2,3301.8,0.8325]
[1737894985658,0.43517352,3302.2,3301.9,0.10774251]
[1737894986852,0.43517352,3302.2,3302.0,0.10774251]
[1737894988103,0.43517352,3302.2,3301.8,3.86112]
[1737894988397,0.13235352,3302.2,3301.8,3.86112]
[1737894988800,3.02822,3302.3,3301.8,3.86112]
[1737894989012,0.13235352,3302.1,3301.8,3.86112]
[1737894989306,3.02822,3302.3,3301.8,3.86112]
[1737894989457,0.13235352,3302.0,3301.8,3.86112]
[1737894989659,3.02822,3302.3,3301.8,3.86112]
[1737894989848,4.60932789,3302.3,3301.8,3.86112]
[1737894990051,0.13235352,3302.2,3301.8,3.86112]
[1737894990502,4.60932789,3302.3,3301.8,3.86112]
[1737894990686,0.13235352,3302.1,3301.8,3.86112]
[1737894990870,4.60932789,3302.3,3301.8,3.86112]
[1737894991197,0.8203674,3302.2,3301.8,3.86112]
[1737894991395,0.95272092,3302.2,3301.8,3.86112]
[1737894993011,0.95272092,3302.2,3301.8,0.8325]
[1737894993374,3.98101092,3302.2,3301.8,0.8325]
[1737894995397,3.02903,3301.4,3300.7,3.02961]
[1737894995594,3.02903,3301.4,3300.8,0.8168]
[1737894995909,3.16153467,3301.3,3300.8,0.8168]
[1737894996213,3.02921,3301.2,3300.8,0.8168]
[1737894996802,0.13240467,3301.1,3300.8,0.8168]
[1737894998072,0.13240467,3301.1,3300.8,3.84632]
[1737894998255,3.27862,3301.4,3300.8,3.84632]
[1737894998461,0.13240467,3301.0,3300.8,3.84632]
[1737894998773,0.13240467,3300.9,3300.8,0.8168]
[1737894998973,3.02912,3301.3,3300.8,0.8168]
[1737894999174,0.13240467,3300.9,3300.6,6.87628]
[1737894999373,3.02912,3301.3,3300.6,6.87628]
[1737894999592,0.13240467,3300.8,3300.6,6.87628]
[1737894999795,3.7305308,3301.3,3300.6,3.84654]
[1737895000015,0.13240467,3300.7,3300.6,3.84654]
[1737895000186,3.7305308,3301.3,3300.6,3.84654]
[1737895000388,0.13240467,3300.7,3300.6,3.84654]
[1737895000623,3.7305308,3301.3,3300.6,3.84654]
[1737895000783,0.39801308,3301.2,3300.7,3.0296]
[1737895001482,0.7014108,3301.3,3300.8,3.02954]
[1737895001688,0.2496,3301.4,3301.0,3.02936]
[1737895002090,0.2496,3301.4,3300.8,3.02954]
[1737895002403,3.02917,3301.3,3300.6,3.84651]
[1737895002805,3.7906,3301.2,3300.6,3.84651]
[1737895004450,3.7906,3301.2,3300.6,3.83906384]
[1737895004739,0.37906,3301.1,3300.6,3.83906384]
[1737895004956,3.02944,3301.0,3300.6,0.80935384]
[1737895005124,3.02944,3301.0,3300.4,3.02991]
[1737895007549,3.02944,3301.0,3300.4,3.79071]
[1737895009136,3.02949,3300.9,3300.4,3.79071]
[1737895009338,4.21153728,3300.9,3300.4,3.79071]
[1737895009739,4.21153728,3300.9,3300.4,0.7608]
[1737895010615,4.21153728,3300.9,3300.4,3.79072]
[1737895011275,1.18204728,3300.9,3300.4,3.79072]
[1737895011664,1.18204728,3300.9,3300.4,3.79067]
[1737895011977,0.55281441,3300.8,3300.4,3.79067]
[1737895012347,0.13166468,3300.8,3300.4,3.79067]
[1737895012533,3.02939,3301.0,3300.4,3.79067]
[1737895012734,3.16115468,3300.9,3300.4,3.79067]
[1737895012974,0.13166468,3300.9,3300.4,0.7608]
[1737895013180,0.13166468,3300.9,3300.4,3.79067]
[1737895013533,0.13166468,3300.8,3300.4,3.79067]
[1737895013776,3.02938,3301.0,3300.4,3.79067]
[1737895013984,0.13153868,3300.9,3300.4,3.79067]
[1737895015268,0.13153868,3300.9,3300.4,0.7608]
[1737895015565,3.16105868,3300.9,3300.4,0.7608]
[1737895015980,0.13153868,3300.9,3300.4,3.7907]
[1737895016880,3.16107868,3300.9,3300.4,0.7608]
[1737895017036,0.13153868,3300.9,3299.6,3.64176396]
[1737895017237,0.8197,3300.8,3300.2,3.03006]
[1737895017744,0.13155049,3300.7,3300.2,3.03006]
[1737895018477,0.13155049,3300.7,3300.0,3.0303]
[1737895018678,3.16129049,3300.7,3300.1,3.0302]
[1737895020248,0.13155049,3300.7,3300.5,3.02983]
[1737895020586,3.60129736,3301.0,3300.6,0.8327]
[1737895022044,6.16318282,3301.6,3300.7,3.02959]
[1737895022245,3.0,3301.5,3301.1,3.02927]
[1737895022992,3.0,3301.5,3301.2,0.8079]
[1737895023341,5.38248282,3301.6,3301.2,0.8079]
[1737895023691,5.38248282,3301.6,3301.3,3.0291]
[1737895024283,5.38248282,3301.6,3301.2,0.8079]
[1737895024489,5.38248282,3301.6,3301.2,3.8371]
[1737895025264,3.02892,3301.5,3301.0,3.02938]
[1737895025466,3.02892,3301.5,3301.0,0.8079]
[1737895026025,5.38248282,3301.6,3301.1,3.02921]
[1737895026174,5.38248282,3301.6,3301.3,3.0291]
[1737895026376,5.38248282,3301.6,3301.3,3.837]
[1737895027012,0.37704288,3301.4,3301.3,3.837]
[1737895032882,0.37704288,3301.4,3301.3,0.8079]
[1737895033923,0.37704288,3301.4,3301.0,0.8171]
[1737895034449,3.40607288,3301.4,3301.0,0.8171]
[1737895036053,0.37704288,3301.4,3301.0,0.8171]
[1737895037076,0.37704288,3301.4,3301.0,3.84648]
[1737895037957,0.37704288,3301.4,3301.1,3.02921]
[1737895038135,0.37704288,3301.4,3301.3,3.8462]
[1737895040530,0.2496,3301.4,3301.3,3.8462]
[1737895048524,0.37328903,3301.4,3301.3,3.8462]
[1737895051262,0.2496,3301.4,3301.3,3.8462]
[1737895051428,0.2496,3301.4,3301.3,4.53672412]
[1737895056826,0.2496,3301.4,3301.3,8.08672412]
[1737895057168,1e-05,3301.4,3301.3,8.08672412]
[1737895060268,1e-05,3301.4,3301.3,13.32672412]
[1737895060675,1e-05,3301.4,3301.3,13.92452205]
[1737895061696,1e-05,3301.4,3301.3,14.02452205]
[1737895062045,0.8102,3303.1,3302.7,3.02773]
[1737895062479,0.12431083,3303.0,3302.7,3.02773]
[1737895063882,0.12431083,3303.0,3302.5,3.02794]
[1737895064805,0.12431083,3303.0,3302.2,0.8116]
[1737895064968,0.12431083,3303.0,3302.6,3.02785]
[1737895065647,0.12431083,3303.0,3302.7,3.02782]
[1737895066787,0.12431083,3303.0,3302.5,3.02794]
[1737895066972,0.12431083,3303.0,3302.6,3.02788]
[1737895067562,0.12431083,3303.0,3302.6,6.05572]
[1737895068086,0.12431083,3303.0,3302.6,3.02784]
[1737895070748,0.12431083,3303.0,3302.7,3.02782]
[1737895071694,0.12431083,3303.0,3302.8,3.02772]
[1737895072397,0.12431083,3303.0,3302.6,3.02791]
[1737895072717,0.12431083,3303.0,3302.7,3.02779]
[1737895073905,0.12431083,3303.0,3302.7,0.7948]
[1737895074204,0.7924,3303.3,3302.9,3.02764]
[1737895074610,0.12450087,3303.2,3303.0,3.02751]
[1737895074904,3.7924,3303.5,3303.0,3.02751]
[1737895075384,0.12450087,3303.4,3303.0,3.02751]
[1737895076918,0.12450087,3303.4,3303.1,3.02744]
[1737895079133,0.12450087,3303.4,3302.9,3.02755]
[1737895079340,0.12450087,3303.4,3302.8,3.02769]
[1737895079538,0.12450087,3303.4,3303.0,3.02749]
[1737895081127,0.12450087,3303.4,3302.9,0.382249]
[1737895081328,0.12450087,3303.4,3302.9,3.409879]
[1737895083431,0.12450087,3303.4,3302.9,3.409869]
[1737895084211,0.12450087,3303.4,3302.9,3.409829]
[1737895084435,3.02737,3303.2,3302.7,3.0278]
[1737895084614,0.90730734,3303.1,3302.5,3.02798]
[1737895084813,3.81046,3303.1,3302.5,3.02798]
[1737895085131,0.12430734,3303.0,3302.5,3.02798]
[1737895085335,0.12430734,3303.0,3302.9,4.37084]
[1737895085534,0.12430734,3303.0,3302.9,5.110698]
[1737895085725,0.783,3303.8,3303.2,3.02729]
[1737895086097,0.12028092,3303.7,3303.2,3.02729]
[1737895086963,0.12028092,3303.7,3303.3,3.02724]
[1737895087329,3.0,3303.7,3303.3,3.02724]
[1737895087533,3.0,3303.7,3303.1,3.02744]
[1737895087534,0.12028488,3303.6,3303.1,3.02744]
[1737895088061,3.02719,3303.4,3302.7,3.02776]
[1737895088265,0.1204159,3303.3,3302.9,3.02764]
[1737895088769,3.81009,3303.5,3302.9,3.02764]
[1737895089064,3.0272,3303.4,3302.8,0.302776]
[1737895089266,3.1476159,3303.4,3302.8,3.330506]
[1737895089464,3.1476159,3303.4,3302.6,3.02786]
[1737895089465,0.8185,3303.2,3302.6,3.02786]
[1737895090226,0.12033253,3303.1,3302.3,0.7895]
[1737895090359,0.12033253,3303.1,3302.6,3.02785]
[1737895091331,0.7889,3303.0,3302.4,3.02803]
[1737895091763,0.12026106,3302.9,3302.4,3.02803]
[1737895092786,3.81666,3302.8,3302.2,3.02822]
[1737895093190,3.14799973,3302.7,3302.2,3.02822]
[1737895093485,0.7889,3302.6,3302.1,3.02837]
[1737895093653,3.02809,3302.5,3301.8,3.02861]
[1737895093831,3.93706675,3302.4,3301.8,3.02861]
[1737895094970,0.90892675,3302.4,3301.8,3.02861]
[1737895095895,0.90892675,3302.4,3301.9,0.10751683]
[1737895096094,3.93702675,3302.4,3301.9,0.10751683]
[1737895097594,0.90892675,3302.4,3302.0,0.10751683]
[1737895098493,0.90892675,3302.4,3302.1,3.13588683]
[1737895098693,0.12002675,3302.4,3302.3,3.02819]
[1737895099198,0.7889,3303.0,3302.5,3.02793]
[1737895099497,0.11962557,3302.9,3302.6,3.02791]
[1737895099799,0.11962557,3302.9,3302.7,3.0278]
[1737895100596,0.11962557,3302.9,3302.8,3.02773]
[1737895101096,0.11972091,3302.9,3302.8,3.02773]
[1737895101259,3.7889,3303.3,3302.8,3.02773]
[1737895101460,0.11983212,3303.2,3302.8,3.02773]
[1737895101698,3.7889,3303.3,3302.8,3.02773]
[1737895101994,0.11983212,3303.1,3302.8,3.02773]
[1737895102197,3.7889,3303.3,3302.8,3.02773]
[1737895102365,0.11983212,3303.0,3302.8,3.02773]
[1737895102694,0.11934212,3302.9,3302.8,3.02773]
[1737895103097,0.7889,3303.3,3302.8,3.02773]
[1737895103302,0.11941757,3302.9,3302.8,3.02773]
[1737895103476,0.7889,3303.3,3302.8,3.02773]
[1737895103658,0.11941757,3303.2,3302.8,3.02773]
[1737895103861,0.7889,3303.3,3302.8,3.02773]
[1737895104074,0.11941757,3303.2,3302.8,3.02773]
[1737895104274,0.7889,3303.3,3302.8,3.02773]
[1737895104494,0.11941757,3303.2,3302.8,3.02773]
[1737895104675,0.11941757,3303.2,3302.6,3.02791]
[1737895105265,3.14679757,3303.2,3302.6,3.02791]
[1737895105782,0.11941757,3303.2,3302.6,3.02791]
[1737895105989,0.11941757,3303.2,3302.8,3.02773]
[1737895106289,0.7889,3303.3,3302.8,3.02773]
[1737895106491,0.1194136,3303.1,3302.8,3.02773]
[1737895106796,0.7889,3303.3,3302.8,3.02773]
[1737895106994,0.11939374,3303.0,3302.8,3.02773]
[1737895107198,0.7889,3303.3,3302.8,3.02773]
[1737895107375,0.11939374,3302.9,3302.8,3.02773]
[1737895107575,0.7889,3303.3,3302.8,3.02773]
[1737895107772,0.11939374,3302.9,3302.8,3.02773]
[1737895108011,0.7889,3303.3,3302.8,3.02773]
[1737895108192,0.11939374,3302.9,3302.8,3.02773]
[1737895108391,0.7889,3303.3,3302.8,3.02773]
[1737895108594,0.11939374,3302.9,3302.8,3.02773]
[1737895109112,3.8162,3303.3,3302.8,3.02773]
[1737895109317,0.11939374,3302.9,3302.8,3.13514137]
[1737895109517,3.81619,3303.3,3302.8,0.10741137]
[1737895109720,0.11939374,3302.9,3302.8,0.10741137]
[1737895110017,3.81619,3303.3,3302.8,0.10741137]
[1737895110520,0.11939374,3303.2,3302.8,0.10741137]
[1737895110928,3.0274,3303.2,3302.8,0.10741137]
[1737895111113,0.11939374,3303.1,3302.9,0.10741137]
[1737895112313,0.11939374,3303.1,3302.6,3.02791]